bitfinex/quotes_ETHUSD_20251218
["timestamp","ask_amount","ask_price","bid_price","bid_amount"]
[1766018102977,0.406504,2842.8,2842.1,0.002]
[1766018103162,0.406504,2842.8,2841.7,3.0537]
[1766018103478,0.64963909,2842.7,2841.8,3.0537]
[1766018104279,0.64963909,2842.7,2841.5,3.0537]
[1766018104568,0.64963909,2842.7,2841.6,3.0537]
[1766018107079,0.64963909,2842.7,2841.5,0.002]
[1766018107281,6.49439088,2842.6,2841.5,0.002]
[1766018107489,0.46438023,2842.2,2841.3,0.002]
[1766018108350,0.46438023,2842.2,2841.3,3.0557]
[1766018110080,0.405504,2842.4,2841.3,2.6941]
[1766018110371,0.405504,2842.4,2841.6,0.3613]
[1766018110575,0.405504,2842.4,2841.7,2.4601]
[1766018110772,0.405504,2842.4,2841.6,0.3613]
[1766018110986,0.405504,2842.4,2841.5,2.5696]
[1766018112286,6.08888688,2842.6,2841.3,0.002]
[1766018112287,0.86988423,2842.2,2841.3,0.002]
[1766018112500,0.86988423,2842.2,2841.3,2.5716]
[1766018112660,0.86988423,2842.2,2841.4,2.9426]
[1766018114278,0.86988423,2842.2,2841.4,2.9446]
[1766018114456,0.46438023,2842.2,2841.4,2.9446]
[1766018114658,1.11970694,2842.2,2841.4,2.9446]
[1766018115157,1.11970694,2842.2,2841.5,0.373]
[1766018115478,1.11970694,2842.2,2841.5,2.9426]
[1766018116680,0.65532671,2842.2,2841.5,2.9426]
[1766018117576,0.65532671,2842.2,2841.6,0.373]
[1766018117778,6.96258091,2842.5,2841.6,0.373]
[1766018119887,10.48063985,2842.5,2841.6,0.373]
[1766018120205,10.48063985,2842.5,2841.5,2.5696]
[1766018122403,10.48061093,2842.5,2841.5,2.5696]
[1766018122605,10.48061093,2842.5,2841.5,2.5716]
[1766018122775,0.405504,2842.3,2841.5,2.5716]
[1766018123177,6.09269668,2841.6,2841.0,0.002]
[1766018125401,6.09269668,2841.3,2840.6,0.002]
[1766018125618,0.60926967,2841.2,2840.6,0.002]
[1766018126895,0.60926967,2841.2,2840.5,0.002]
[1766018127299,0.60926967,2841.2,2840.4,0.002]
[1766018128215,1.0736499,2841.2,2840.4,0.002]
[1766018130316,0.405504,2841.1,2840.1,0.002]
[1766018131181,1.0736499,2841.2,2840.2,2.9426]
[1766018131388,0.60926967,2841.2,2840.2,2.5696]
[1766018131594,0.405504,2841.4,2840.2,2.9426]
[1766018131817,0.86988423,2841.4,2840.2,2.9426]
[1766018132616,0.86988423,2841.4,2840.2,2.5696]
[1766018132792,0.405504,2841.4,2840.4,2.9426]
[1766018133893,0.405504,2841.2,2840.4,2.9426]
[1766018134618,0.405504,2841.4,2840.4,2.9426]
[1766018136258,3.92467028,2841.6,2840.4,2.9426]
[1766018136463,0.405504,2841.4,2840.4,2.9426]
[1766018137357,0.405504,2841.4,2840.4,2.9446]
[1766018137558,0.405504,2841.2,2840.4,2.9446]
[1766018137943,0.405504,2841.2,2840.4,0.002]
[1766018138649,0.405504,2841.2,2840.2,2.5696]
[1766018138864,0.405504,2841.2,2840.3,2.9426]
[1766018139565,0.46438023,2841.1,2840.3,2.9426]
[1766018139879,0.4809054,2841.0,2840.3,2.9426]
[1766018140079,0.82502843,2841.2,2840.3,2.9426]
[1766018140675,0.46438023,2841.1,2840.3,2.9426]
[1766018141079,0.82502843,2841.2,2840.3,2.9426]
[1766018141574,0.405504,2841.2,2840.3,2.5696]
[1766018141880,0.405504,2841.2,2840.1,0.29666]
[1766018142173,1.14606405,2841.2,2840.2,0.322126]
[1766018143576,1.14606405,2841.2,2840.2,3.246726]
[1766018145451,1.14606405,2841.2,2840.4,2.9246]
[1766018145792,0.001,2841.4,2840.6,0.3649]
[1766018146566,0.46538023,2841.4,2840.3,0.3649]
[1766018146898,0.46538023,2841.4,2840.3,2.9246]
[1766018147086,0.46538023,2841.4,2840.2,0.322126]
[1766018147478,0.001,2841.4,2840.2,2.9246]
[1766018148403,0.001,2841.4,2840.3,2.9246]
[1766018150267,0.001,2841.4,2840.4,0.3649]
[1766018150473,0.001,2841.4,2840.6,0.3649]
[1766018150775,0.001,2841.4,2840.6,2.5597]
[1766018150983,0.001,2841.4,2840.7,0.3649]
[1766018151596,0.001,2841.4,2840.6,2.5597]
[1766018152995,0.001,2841.4,2840.3,2.5617]
[1766018153291,0.3984718,2841.3,2840.3,2.5617]
[1766018153472,0.3984718,2841.3,2840.3,2.9266]
[1766018153671,0.406504,2841.4,2840.3,2.9266]
[1766018154784,0.001,2841.4,2840.6,2.9246]
[1766018157089,0.001,2841.4,2840.4,2.9246]
[1766018158802,0.46538023,2841.4,2840.4,2.9246]
[1766018159002,0.001,2841.4,2840.4,2.9246]
[1766018159375,0.44000937,2841.4,2840.4,2.9246]
[1766018160786,0.406504,2841.4,2840.4,2.9246]
[1766018161106,0.405504,2841.2,2840.3,0.002]
[1766018162096,0.41952443,2841.1,2840.3,0.002]
[1766018162969,0.405504,2841.2,2840.3,0.002]
[1766018163990,0.82502843,2841.2,2840.3,0.002]
[1766018164502,0.405504,2841.2,2840.3,0.002]
[1766018164709,0.405504,2841.2,2840.1,0.002]
[1766018165134,0.405504,2841.2,2840.2,0.3649]
[1766018165305,0.405504,2841.2,2840.2,2.9246]
[1766018165482,0.405504,2841.2,2840.3,0.002]
[1766018166378,0.405504,2841.2,2840.3,2.9266]
[1766018166584,0.405504,2841.2,2840.3,3.21946]
[1766018166780,0.405504,2841.2,2840.4,2.9246]
[1766018168997,0.405504,2841.2,2840.6,2.5597]
[1766018169185,0.405504,2841.2,2840.6,2.9246]
[1766018172114,0.405504,2841.2,2840.4,3.0177]
[1766018172311,0.405504,2841.2,2840.5,3.0177]
[1766018172658,0.406504,2841.2,2840.5,3.0177]
[1766018173992,0.001,2841.2,2840.6,0.3706]
[1766018175687,0.001,2841.2,2840.6,3.0177]
[1766018175887,0.001,2841.2,2840.6,3.31947]
[1766018177224,0.001,2841.4,2840.7,2.6471]
[1766018177422,0.001,2841.4,2841.2,0.3706]
[1766018177718,0.001,2841.4,2841.3,3.0177]
[1766018178306,0.405504,2842.2,2841.4,0.3706]
[1766018178587,0.405504,2842.2,2840.3,0.50158777]
[1766018178588,0.86988423,2842.2,2841.5,3.0177]
[1766018179590,0.46438023,2842.2,2841.5,2.6471]
[1766018179804,0.46438023,2842.2,2841.6,3.0177]
[1766018180016,0.39827665,2842.1,2841.7,3.0177]
[1766018180311,0.39827665,2842.1,2840.6,0.46438023]
[1766018180532,0.46438023,2842.3,2840.6,0.46438023]
[1766018181520,0.001,2842.1,2840.6,0.46438023]
[1766018182091,0.001,2842.1,2840.7,2.6471]
[1766018182291,0.001,2842.1,2840.9,2.6471]
[1766018182603,0.001,2842.1,2841.2,3.0177]
[1766018182801,0.39937033,2842.1,2841.2,3.0177]
[1766018183116,0.39937033,2842.1,2841.3,0.3706]
[1766018183322,0.39937033,2842.1,2841.5,0.3706]
[1766018183503,0.39937033,2842.1,2840.5,6.09678943]
[1766018183690,0.39937033,2842.1,2840.8,2.6471]
[1766018184025,0.39937033,2842.1,2840.9,0.30177]
[1766018184207,0.405504,2841.8,2840.5,3.0177]
[1766018184401,0.82502843,2841.8,2840.5,3.0177]
[1766018184588,0.41952443,2841.7,2840.5,3.0177]
[1766018185220,0.769799,2841.7,2840.5,3.0177]
[1766018185523,0.769799,2841.7,2840.7,2.6471]
[1766018185707,0.769799,2841.7,2840.3,0.002]
[1766018185708,0.769799,2841.7,2840.5,3.0177]
[1766018186018,0.405504,2841.6,2840.5,3.31967]
[1766018186390,0.41952443,2841.6,2840.5,3.31967]
[1766018186787,0.41952443,2841.6,2840.3,0.002]
[1766018187007,0.405504,2841.4,2840.3,0.002]
[1766018188018,0.82502843,2841.4,2840.3,0.002]
[1766018188219,0.405504,2841.4,2840.3,0.002]
[1766018189794,0.406504,2841.4,2840.3,0.002]
[1766018190529,0.001,2841.4,2841.0,2.6471]
[1766018190822,0.001,2841.4,2841.1,0.03519763]
[1766018190998,0.001,2841.4,2841.2,3.0177]
[1766018191850,0.001,2841.4,2840.6,2.6471]
[1766018192012,0.001,2841.4,2840.7,3.28241]
[1766018192711,0.001,2841.4,2840.7,2.91181]
[1766018192940,0.001,2841.4,2840.8,3.0177]
[1766018193350,0.001,2841.4,2841.0,2.6471]
[1766018193644,0.001,2841.4,2841.0,3.0177]
[1766018193846,0.001,2841.4,2841.0,3.31947]
[1766018194010,0.001,2841.4,2841.0,0.30177]
[1766018194827,0.001,2841.4,2841.0,3.31947]
[1766018196024,0.001,2841.4,2841.0,0.30177]
[1766018196240,0.001,2841.4,2840.8,3.0177]
[1766018199025,0.001,2841.4,2841.1,0.3706]
[1766018199211,0.001,2841.4,2841.2,3.0177]
[1766018199413,0.001,2841.4,2840.6,2.6471]
[1766018199657,0.001,2842.1,2841.4,0.3706]
[1766018199946,0.001,2842.1,2841.7,3.0177]
[1766018200648,0.001,2842.1,2841.3,2.6471]
[1766018200951,0.001,2842.1,2841.5,3.0177]
[1766018202640,0.001,2842.1,2840.9,6.09397297]
[1766018202868,0.001,2842.1,2841.1,2.9631]
[1766018203065,0.001,2842.1,2841.4,0.3388]
[1766018203260,0.001,2842.1,2841.1,2.9631]
[1766018203455,0.001,2842.1,2841.2,0.3388]
[1766018203660,4.34099591,2842.5,2841.3,2.9631]
[1766018206492,0.001,2842.6,2841.5,2.9631]
[1766018206647,0.405504,2842.5,2841.5,2.9631]
[1766018206846,0.405504,2842.5,2841.6,0.29631]
[1766018207270,0.001,2842.1,2841.6,2.92061]
[1766018207466,0.001,2842.1,2841.6,3.25941]
[1766018211599,0.87088423,2842.6,2841.7,2.9631]
[1766018211600,0.001,2842.6,2841.7,2.9631]
[1766018211800,0.42052443,2842.6,2841.7,3.289041]
[1766018212318,0.41952443,2842.5,2841.7,3.289041]
[1766018212815,0.41952443,2842.5,2841.8,2.6243]
[1766018212986,0.001,2842.6,2842.2,2.6243]
[1766018213476,0.001,2842.6,2842.1,0.3388]
[1766018213675,0.001,2842.6,2842.1,2.9631]
[1766018213875,0.001,2842.6,2842.2,0.29631]
[1766018214571,0.001,2842.6,2841.9,2.9631]
[1766018214798,0.001,2842.6,2841.9,2.6243]
[1766018215006,0.001,2842.6,2842.0,2.9631]
[1766018216516,0.405504,2842.5,2841.4,0.3388]
[1766018216811,0.405504,2842.5,2841.2,0.3388]
[1766018216812,0.46438023,2842.2,2841.2,0.3388]
[1766018217312,0.46438023,2842.2,2841.1,2.6243]
[1766018217313,0.405504,2842.1,2841.1,2.6243]
[1766018217527,4.3886586,2841.9,2840.6,2.9631]
[1766018217682,6.09397297,2841.7,2840.6,2.9631]
[1766018217895,6.09397297,2841.7,2840.7,0.29651]
[1766018217896,1.01117187,2841.6,2840.7,0.29651]
[1766018218201,1.4306963,2841.6,2840.7,0.29651]
[1766018218418,1.4306963,2841.6,2840.5,0.002]
[1766018218924,0.405504,2841.5,2840.5,0.002]
[1766018221202,0.405504,2841.5,2840.5,2.9651]
[1766018221408,6.49947697,2841.7,2840.6,0.3408]
[1766018221643,6.49947697,2841.7,2840.7,2.6243]
[1766018221929,0.405504,2841.5,2840.6,0.002]
[1766018222407,0.405504,2841.5,2840.5,0.002]
[1766018222737,0.405504,2841.5,2840.6,2.9631]
[1766018223042,0.405504,2841.5,2840.5,0.002]
[1766018223538,0.405504,2841.5,2840.5,2.6263]
[1766018223750,1.12519027,2841.5,2840.5,3.22793]
[1766018224108,1.12519027,2841.5,2840.5,0.26483]
[1766018224307,0.86988423,2841.5,2840.6,0.3388]
[1766018225529,0.405504,2841.5,2840.6,2.9631]
[1766018226422,6.09397297,2841.4,2840.5,0.002]
[1766018226747,0.46438023,2841.3,2840.5,0.002]
[1766018227048,0.46438023,2841.3,2840.5,0.26483]
[1766018228325,0.46438023,2841.3,2840.5,0.002]
[1766018229817,0.405504,2841.5,2840.6,0.3388]
[1766018230019,0.405504,2841.5,2840.6,2.9631]
[1766018230635,0.405504,2841.5,2840.7,0.3686]
[1766018230813,0.405504,2841.5,2840.7,3.0648]
[1766018231345,1.17162829,2841.5,2840.7,3.0648]
[1766018232121,0.405504,2841.5,2840.9,2.6651]
[1766018232348,0.405504,2841.5,2840.5,0.002]
[1766018234449,0.405504,2841.5,2840.5,3.0218]
[1766018235748,0.405504,2841.5,2840.5,2.6671]
[1766018235945,0.86988423,2841.5,2840.5,2.6671]
[1766018236120,0.76602429,2841.4,2840.5,2.96948]
[1766018237243,0.76602429,2841.4,2840.5,0.002]
[1766018237450,0.46438023,2841.2,2840.3,0.002]
[1766018240867,0.46438023,2841.2,2840.4,3.0198]
[1766018243458,0.46438023,2841.2,2840.3,0.002]
[1766018243654,0.65583532,2841.1,2840.3,0.002]
[1766018244140,0.65583532,2841.1,2840.3,3.0218]
[1766018244768,0.65583532,2841.1,2840.4,3.0198]
[1766018246033,0.65583532,2841.1,2840.4,0.3547]
[1766018246239,0.65583532,2841.1,2840.3,0.002]
[1766018246440,0.65583532,2841.1,2840.3,3.0218]
[1766018246939,0.65583532,2841.1,2840.4,3.0198]
[1766018248289,0.65583532,2841.1,2840.5,0.3547]
[1766018248483,0.405504,2841.3,2840.5,0.3547]
[1766018248683,0.86988423,2841.3,2840.5,3.0198]
[1766018251371,0.86988423,2841.4,2840.5,3.0198]
[1766018253596,0.406504,2841.5,2840.5,3.0198]
[1766018254099,0.406504,2841.5,2840.5,3.0218]
[1766018258716,0.82602843,2841.5,2840.5,0.002]
[1766018258879,0.405504,2841.3,2840.3,0.002]
[1766018259814,0.80727857,2841.3,2840.3,0.002]
[1766018260319,0.40177457,2841.2,2840.3,0.002]
[1766018260519,0.40177457,2841.2,2840.1,0.002]
[1766018260520,0.405504,2841.1,2840.1,0.002]
[1766018260724,1.788e-05,2842.2,2841.1,0.3547]
[1766018260919,0.001,2842.9,2842.6,2.6966]
[1766018261098,0.001,2842.9,2842.0,3.0379]
[1766018261300,0.001,2842.9,2842.4,2.6966]
[1766018261519,0.001,2842.9,2842.7,0.3413]
[1766018261688,0.001,2842.9,2842.7,3.0379]
[1766018263915,0.001,2842.9,2842.0,2.6966]
[1766018264212,0.001,2842.9,2842.4,2.6966]
[1766018264419,0.001,2842.9,2842.5,3.0379]
[1766018265123,0.001,2842.9,2842.5,2.6966]
[1766018265301,0.001,2842.9,2842.5,3.0379]
[1766018266220,0.001,2842.9,2842.2,2.6966]
[1766018266421,0.001,2842.9,2842.4,2.6966]
[1766018266630,0.001,2842.9,2842.5,3.0379]
[1766018267115,0.001,2842.9,2842.6,0.3413]
[1766018267319,0.001,2842.9,2842.4,0.26966]
[1766018267519,0.001,2842.9,2841.9,2.6966]
[1766018267726,0.001,2842.9,2841.9,3.0379]
[1766018269791,0.558,2842.8,2841.9,3.0379]
[1766018270192,0.558,2842.7,2841.9,3.0379]
[1766018270628,0.558,2842.7,2842.0,0.3413]
[1766018270796,0.558,2842.7,2842.1,0.30379]
[1766018270995,0.558,2842.7,2841.5,3.0379]
[1766018271828,0.46438023,2842.6,2841.5,3.0379]
[1766018272429,0.558,2842.7,2841.5,3.0379]
[1766018273297,0.558,2842.7,2841.5,2.6966]
[1766018273495,0.46438023,2842.6,2841.3,0.3413]
[1766018273694,0.6299732,2842.6,2841.4,2.6966]
[1766018273925,0.558,2842.7,2841.4,3.0379]
[1766018274326,0.46438023,2842.6,2841.4,3.0379]
[1766018275432,0.558,2842.7,2841.4,3.0379]
[1766018276926,0.558,2842.7,2841.4,3.0399]
[1766018280440,0.46438023,2842.6,2841.4,3.0399]
[1766018280608,0.45401679,2842.5,2841.4,3.34389]
[1766018281235,1.02238023,2842.7,2841.4,3.34389]
[1766018281541,1.59265698,2842.7,2841.4,3.34389]
[1766018281840,1.59265698,2842.7,2841.4,3.00259]
[1766018282020,1.59265698,2842.7,2841.5,3.0379]
[1766018284518,1.59265698,2842.7,2841.5,3.07309267]
[1766018284845,1.12081612,2842.6,2841.5,3.07309267]
[1766018285978,0.57027675,2842.7,2841.5,2.73179267]
[1766018286275,0.558,2842.5,2841.6,3.07309144]
[1766018286476,0.558,2842.5,2841.6,3.0379]
[1766018286641,0.558,2842.5,2841.5,0.03519267]
[1766018287182,0.558,2842.5,2841.4,3.34389]
[1766018287183,0.558,2842.5,2841.4,0.30599]
[1766018287341,1.12827675,2842.5,2841.4,0.002]
[1766018287659,1.12827675,2842.5,2841.4,3.0399]
[1766018288484,0.558,2842.4,2841.6,3.0379]
[1766018291694,0.558,2842.4,2841.7,0.3558]
[1766018291885,0.558,2842.4,2841.7,2.7921]
[1766018292475,0.57027675,2842.5,2841.8,2.7921]
[1766018292675,0.558,2842.3,2841.8,2.7921]
[1766018292839,0.558,2842.3,2841.5,2.7941]
[1766018293071,0.558,2842.3,2841.6,0.03519144]
[1766018293299,0.558,2842.3,2841.6,2.82729144]
[1766018294505,0.57027675,2842.5,2841.6,2.82729144]
[1766018294696,0.558,2842.2,2841.6,2.82729144]
[1766018295196,0.558,2842.2,2841.6,2.7921]
[1766018295499,0.558,2842.1,2841.7,2.7921]
[1766018295679,0.558,2842.1,2841.8,0.03518896]
[1766018296800,0.558,2842.1,2841.8,2.82728896]
[1766018297099,0.558,2842.1,2841.9,0.03518772]
[1766018297299,0.558,2842.0,2841.8,2.7921]
[1766018297599,0.57027675,2842.5,2841.9,0.03518772]
[1766018297779,0.558,2842.4,2841.9,0.03518772]
[1766018300293,0.57027675,2842.5,2841.8,2.7921]
[1766018300688,0.558,2842.4,2841.8,2.7921]
[1766018302123,0.558,2842.4,2841.5,0.002]
[1766018302426,0.558,2842.4,2841.5,3.07371]
[1766018304595,0.558,2842.4,2841.6,2.7921]
[1766018311131,0.558,2842.4,2841.8,0.3558]
[1766018311433,0.558,2842.4,2841.9,2.82728772]
[1766018312429,0.558,2842.4,2841.9,2.7921]
[1766018312637,0.558,2842.4,2841.9,2.4363]
[1766018313112,0.558,2842.4,2842.0,0.03518648]
[1766018313512,0.558,2842.4,2841.9,2.7921]
[1766018314535,0.558,2842.4,2841.9,2.4363]
[1766018314736,0.558,2842.4,2841.9,2.7921]
[1766018316264,0.558,2842.4,2841.8,0.002]
[1766018317252,0.558,2842.4,2841.5,0.002]
[1766018317552,0.558,2842.4,2841.5,3.68279206]
[1766018319855,0.558,2842.4,2841.5,2.7941]
[1766018321053,0.558,2842.4,2841.5,0.002]
[1766018321360,0.559,2842.4,2841.6,3.0294]
[1766018324289,0.559,2842.4,2841.5,0.002]
[1766018324792,0.559,2842.4,2841.5,3.0314]
[1766018324967,0.559,2842.4,2841.5,3.33474]
[1766018330705,0.559,2842.4,2841.6,3.0294]
[1766018331900,0.559,2842.4,2841.7,0.3637]
[1766018332102,0.559,2842.4,2841.7,3.0294]
[1766018335518,0.559,2842.4,2841.8,0.3637]
[1766018335705,0.559,2842.4,2841.8,3.0294]
[1766018340011,0.001,2842.4,2841.9,0.3637]
[1766018340194,0.001,2842.4,2842.1,3.0294]
[1766018340195,0.557,2842.3,2842.1,3.0294]
[1766018340911,0.557,2842.3,2841.5,6.09349133]
[1766018341111,0.557,2842.3,2841.8,2.6657]
[1766018341309,0.557,2842.3,2842.0,3.0294]
[1766018344214,0.557,2842.3,2841.6,3.0294]
[1766018344417,0.557,2842.3,2841.9,0.3637]
[1766018344617,0.557,2842.2,2841.9,3.0294]
[1766018345117,0.001,2842.8,2842.4,3.0294]
[1766018345326,0.001,2842.8,2842.4,2.6657]
[1766018345529,0.0861,2842.8,2842.2,3.0294]
[1766018345732,0.0861,2842.8,2842.3,1.27578913]
[1766018346028,0.001,2842.8,2842.4,3.0294]
[1766018348216,0.001,2842.8,2842.5,0.3637]
[1766018348532,0.001,2842.8,2842.5,3.0294]
[1766018352533,0.001,2842.8,2842.6,0.3634]
[1766018352728,0.001,2842.8,2842.7,2.4253]
[1766018353736,0.001,2842.8,2842.6,2.7887]
[1766018354738,0.001,2842.9,2842.6,2.70417]
[1766018355031,0.001,2842.9,2842.7,2.4253]
[1766018355334,0.001,2842.8,2842.6,3.06757]
[1766018356239,0.001,2842.8,2842.1,6.09149133]
[1766018356435,0.001,2842.8,2842.4,2.4253]
[1766018356634,0.0861,2842.8,2842.4,2.7887]
[1766018356851,0.001,2842.8,2842.4,2.7887]
[1766018357139,0.0851,2842.7,2841.9,2.7887]
[1766018357363,0.0851,2842.7,2842.0,2.70417]
[1766018357852,0.0851,2842.7,2842.0,3.06757]
[1766018359436,0.001,2842.8,2842.1,2.4253]
[1766018359814,0.0851,2842.7,2842.1,2.4253]
[1766018360849,0.0851,2842.7,2842.1,2.7887]
[1766018361668,0.0851,2842.7,2842.0,0.27887]
[1766018361969,0.0851,2842.7,2841.7,6.09149133]
[1766018361970,0.0851,2842.7,2841.9,2.7887]
[1766018362142,0.0851,2842.7,2842.0,2.7887]
[1766018362752,0.0851,2842.7,2842.0,2.7907]
[1766018365186,0.0851,2842.7,2842.0,2.4273]
[1766018365385,0.0851,2842.7,2842.0,0.002]
[1766018366393,0.0851,2842.7,2842.0,2.7907]
[1766018367366,0.0851,2842.7,2842.0,2.4273]
[1766018367570,0.001,2842.8,2842.2,0.3634]
[1766018367792,0.0861,2842.8,2842.2,2.7887]
[1766018368291,0.0861,2842.8,2842.3,0.3634]
[1766018368485,0.0861,2842.8,2842.3,2.7887]
[1766018369696,0.001,2842.8,2842.6,0.3634]
[1766018369901,0.001,2842.8,2842.6,2.4253]
[1766018370268,0.001,2842.8,2842.7,0.03517782]
[1766018370602,0.001,2842.8,2842.6,2.4253]
[1766018371381,0.001,2842.8,2842.6,2.7887]
[1766018371699,0.001,2842.8,2842.7,0.3634]
[1766018371865,0.001,2842.8,2842.7,2.7887]
[1766018373596,0.001,2842.8,2842.2,2.4253]
[1766018373798,0.001,2842.8,2842.3,2.4253]
[1766018373991,0.0861,2842.8,2842.4,0.3634]
[1766018374297,0.001,2842.8,2842.4,2.7887]
[1766018374498,0.0861,2842.8,2842.4,2.7887]
[1766018374804,0.001,2842.8,2842.5,2.7887]
[1766018375980,0.001,2842.8,2842.1,0.002]
[1766018375981,0.001,2842.8,2842.7,2.4253]
[1766018376507,0.001,2842.9,2842.7,2.7887]
[1766018377802,0.001,2842.9,2842.8,2.4253]
[1766018378203,0.001,2842.9,2842.7,0.3634]
[1766018378374,0.001,2842.9,2842.7,2.7887]
[1766018378699,0.001,2842.9,2842.1,0.002]
[1766018378903,0.0861,2842.9,2842.3,2.7887]
[1766018379212,0.0861,2842.9,2842.4,3.06757]
[1766018379403,0.0861,2842.9,2842.5,2.4253]
[1766018379611,0.001,2842.9,2842.5,2.7887]
[1766018380110,0.001,2842.9,2842.5,2.7907]
[1766018380276,0.001,2842.9,2842.6,2.4215326]
[1766018380482,0.001,2842.8,2842.7,0.3634]
[1766018382480,0.001,2842.8,2842.7,2.4126]
[1766018383007,0.001,2842.8,2842.6,2.7759]
[1766018383799,0.001,2842.9,2842.7,0.3633]
[1766018384114,0.001,2842.9,2842.8,2.7759]
[1766018384314,0.001,2842.9,2842.8,2.4126]
[1766018384723,0.001,2842.9,2842.7,2.4126]
[1766018385021,0.001,2842.9,2842.7,2.7759]
[1766018385819,0.001,2842.9,2842.5,0.002]
[1766018386113,0.001,2842.9,2842.6,2.7759]
[1766018386279,0.001,2842.9,2842.7,2.4126]
[1766018387128,0.001,2842.9,2842.8,0.3633]
[1766018387328,0.001,2842.9,2842.8,2.7759]
[1766018387531,0.001,2842.9,2842.6,2.7759]
[1766018387686,0.001,2842.9,2842.8,2.4126]
[1766018388512,0.001,2842.9,2842.7,2.7759]
[1766018388924,0.001,2842.9,2842.5,2.7779]
[1766018389102,0.001,2842.9,2842.5,0.64309]
[1766018389302,0.001,2842.9,2842.5,2.4146]
[1766018389504,0.001,2842.9,2842.6,2.7759]
[1766018391319,0.0851,2842.8,2842.5,0.002]
[1766018391519,0.0861,2842.9,2842.5,0.002]
[1766018391723,0.0861,2842.9,2842.5,2.7779]
[1766018392819,0.0861,2842.9,2842.5,3.05569]
[1766018393124,0.001,2843.3,2842.8,2.7759]
[1766018393125,0.0861,2843.3,2842.8,2.7759]
[1766018394527,0.0861,2843.3,2842.8,2.4126]
[1766018394708,0.0861,2843.3,2842.8,2.7759]
[1766018395404,0.0861,2843.3,2842.8,2.4126]
[1766018397531,0.0861,2843.3,2842.6,2.7759]
[1766018397712,0.0861,2843.3,2842.6,3.081469]
[1766018397911,0.0861,2843.3,2842.7,2.4126]
[1766018398531,0.0861,2843.3,2842.7,2.7759]
[1766018400734,0.0861,2843.3,2842.7,2.4126]
[1766018400932,0.0861,2843.3,2842.5,0.3653]
[1766018401138,0.0861,2843.3,2842.5,2.7779]
[1766018401338,0.0861,2843.3,2842.5,0.002]
[1766018401724,0.0831,2843.2,2842.2,2.7759]
[1766018403007,0.0841,2843.2,2842.2,2.7759]
[1766018403613,0.0841,2843.2,2842.3,0.3633]
[1766018403832,0.0841,2843.2,2842.3,2.7759]
[1766018404339,0.46438023,2843.1,2842.1,2.7779]
[1766018404510,0.0831,2842.9,2842.1,0.002]
[1766018405939,0.0831,2842.9,2842.1,2.4146]
[1766018406109,0.0831,2842.9,2842.2,2.7759]
[1766018406908,0.0831,2843.1,2841.9,2.4126]
[1766018407137,0.0831,2842.9,2841.9,2.7759]
[1766018407439,0.0831,2842.9,2842.0,2.7759]
[1766018407809,0.0831,2842.9,2842.1,0.3633]
[1766018408010,0.0831,2842.9,2842.1,2.7759]
[1766018408943,0.0831,2842.9,2842.1,2.4126]
[1766018410839,0.0831,2842.9,2842.0,0.3633]
[1766018411136,0.0831,2842.9,2842.0,2.7862]
[1766018411366,0.0831,2842.8,2842.0,2.7862]
[1766018411562,0.0831,2842.8,2842.1,0.3605]
[1766018411864,0.0831,2842.8,2842.0,0.002]
[1766018412038,0.0831,2842.8,2842.0,2.4229]
[1766018412872,0.0831,2842.8,2842.0,0.002]
[1766018416671,0.405504,2842.7,2841.9,0.03518772]
[1766018416981,0.405504,2842.7,2841.7,0.3605]
[1766018416982,0.0831,2842.6,2841.8,2.45608896]
[1766018417362,0.0831,2842.6,2841.8,0.03518896]
[1766018417763,0.0831,2842.6,2841.7,0.3605]
[1766018417990,0.0831,2842.6,2841.4,0.002]
[1766018417991,0.0831,2842.6,2841.9,0.3605]
[1766018418187,0.0831,2842.6,2842.0,0.03518648]
[1766018418761,0.0831,2842.6,2841.9,2.7814]
[1766018418965,0.0831,2842.6,2842.0,2.81658648]
[1766018419168,0.0831,2842.6,2842.0,2.7814]
[1766018422694,0.0831,2842.6,2841.8,0.002]
[1766018425371,0.0841,2842.6,2841.8,2.4229]
[1766018425569,0.0841,2842.6,2841.8,2.70124]
[1766018427193,0.0841,2842.6,2841.8,0.28034]
[1766018427396,0.0841,2842.6,2841.8,0.002]
[1766018428167,0.0841,2842.6,2841.8,2.4229]
[1766018428366,0.0841,2842.6,2841.8,2.7834]
[1766018433103,0.0841,2842.6,2841.8,2.4229]
[1766018434305,0.001,2842.6,2842.0,2.4209]
[1766018434503,0.001,2842.6,2842.3,0.3605]
[1766018434806,0.001,2842.9,2842.6,2.4209]
[1766018434975,0.001,2842.9,2842.8,2.7814]
[1766018435173,0.001,2843.2,2842.8,2.7814]
[1766018435776,0.001,2843.2,2842.9,0.3605]
[1766018435978,0.001,2843.2,2842.9,2.7814]
[1766018436803,0.001,2843.2,2842.3,0.27814]
[1766018437005,0.001,2843.2,2842.7,0.3605]
[1766018437212,0.0841,2843.2,2842.7,2.7814]
[1766018437704,0.0841,2843.2,2842.4,0.3605]
[1766018437899,0.0841,2843.2,2842.5,2.4209]
[1766018438101,0.0841,2843.2,2842.6,0.27814]
[1766018438715,0.0841,2843.2,2842.5,2.7814]